[Event "Titled Tuesday Blitz April 05 Early 2022"]
[White "Rodchenkov, Sergey D."]
[Black "Stanisz, Patryk"]
[WhiteFideId "4168712"]
[BlackFideId "1123106"]
[WhiteElo "2306"]
[BlackElo "1833"]
[Result "0-1"]
[Round "11"]
[TimeControl "180+1"]
[Date "2022.04.05"]
[WhiteClock "0:01:47"]
[BlackClock "0:00:12"]

1. e4 {[%clk 0:03:00]}  b6 {[%clk 0:02:59]} 2. d4 {[%clk 0:03:00]}  Ba6 {[%clk 0:02:59]} 3. c4 {[%clk 0:02:59]}  e6 {[%clk 0:02:57]} 4. Bd3 {[%clk 0:02:57]}  d5 {[%clk 0:02:46]} 5. b3 {[%clk 0:02:52]}  dxc4 {[%clk 0:02:36]} 6. Bxc4 {[%clk 0:02:53]}  Bxc4 {[%clk 0:02:35]} 7. bxc4 {[%clk 0:02:53]}  e5 {[%clk 0:02:22]} 8. dxe5 {[%clk 0:02:47]}  Qxd1+ {[%clk 0:02:00]} 9. Kxd1 {[%clk 0:02:48]}  Nd7 {[%clk 0:01:53]} 10. Nf3 {[%clk 0:02:47]}  O-O-O {[%clk 0:01:52]} 11. Kc2 {[%clk 0:02:46]}  Ne7 {[%clk 0:01:50]} 12. Bf4 {[%clk 0:02:41]}  Ng6 {[%clk 0:01:48]} 13. Bg3 {[%clk 0:02:42]}  Be7 {[%clk 0:01:43]} 14. Nc3 {[%clk 0:02:41]}  Nc5 {[%clk 0:01:43]} 15. Rhd1 {[%clk 0:02:34]}  h5 {[%clk 0:01:43]} 16. h3 {[%clk 0:02:31]}  c6 {[%clk 0:01:38]} 17. Ng1 {[%clk 0:02:24]}  Ne6 {[%clk 0:01:32]} 18. Nge2 {[%clk 0:02:22]}  Bc5 {[%clk 0:01:27]} 19. f4 {[%clk 0:02:19]}  h4 {[%clk 0:01:14]} 20. Bh2 {[%clk 0:02:19]}  Nd4+ {[%clk 0:01:13]} 21. Nxd4 {[%clk 0:02:18]}  Bxd4 {[%clk 0:01:14]} 22. Rd3 {[%clk 0:02:16]}  Bxc3 {[%clk 0:01:08]} 23. Kxc3 {[%clk 0:02:17]}  Rxd3+ {[%clk 0:01:07]} 24. Kxd3 {[%clk 0:02:17]}  Rd8+ {[%clk 0:01:07]} 25. Kc3 {[%clk 0:02:15]}  c5 {[%clk 0:01:04]} 26. f5 {[%clk 0:02:14]}  Ne7 {[%clk 0:01:01]} 27. Bg1 {[%clk 0:02:10]}  Nc6 {[%clk 0:01:00]} 28. Bh2 {[%clk 0:02:04]}  Nb4 {[%clk 0:00:56]} 29. a3 {[%clk 0:02:01]}  Rd3+ {[%clk 0:00:50]} 30. Kb2 {[%clk 0:02:02]}  Nc6 {[%clk 0:00:31]} 31. Kc2 {[%clk 0:01:55]}  Rd4 {[%clk 0:00:29]} 32. Re1 {[%clk 0:01:55]}  Rxc4+ {[%clk 0:00:27]} 33. Kb3 {[%clk 0:01:56]}  Na5+ {[%clk 0:00:25]} 34. Kb2 {[%clk 0:01:55]}  Rd4 {[%clk 0:00:23]} 35. Kc3 {[%clk 0:01:54]}  Rc4+ {[%clk 0:00:22]} 36. Kd3 {[%clk 0:01:54]}  Rd4+ {[%clk 0:00:22]} 37. Ke3 {[%clk 0:01:55]}  Nc4+ {[%clk 0:00:23]} 38. Kf4 {[%clk 0:01:54]}  a5 {[%clk 0:00:17]} 39. e6 {[%clk 0:01:53]}  fxe6 {[%clk 0:00:17]} 40. fxe6 {[%clk 0:01:54]}  Kd8 {[%clk 0:00:17]} 41. Kf5 {[%clk 0:01:55]}  Ke7 {[%clk 0:00:17]} 42. e5 {[%clk 0:01:49]}  Nxa3 {[%clk 0:00:10]} 43. Bg1 {[%clk 0:01:49]}  Rd8 {[%clk 0:00:04]} 44. Be3 {[%clk 0:01:46]}  Rf8+ {[%clk 0:00:04]} 45. Ke4 {[%clk 0:01:47]}  Kxe6 {[%clk 0:00:05]} 46. Rd1 {[%clk 0:01:48]}  Nc4 {[%clk 0:00:05]} 47. Bf4 {[%clk 0:01:45]}  g5 {[%clk 0:00:03]} 48. Bh2 {[%clk 0:01:43]}  Rf7 {[%clk 0:00:02]} 49. Rc1 {[%clk 0:01:43]}  Nd2+ {[%clk 0:00:02]} 50. Kd3 {[%clk 0:01:41]}  Nb3 {[%clk 0:00:03]} 51. Rb1 {[%clk 0:01:40]}  a4 {[%clk 0:00:03]} 52. Kc4 {[%clk 0:01:40]}  Nd2+ {[%clk 0:00:03]} 53. Kb5 {[%clk 0:01:40]}  Nxb1 {[%clk 0:00:04]} 54. Kxb6 {[%clk 0:01:41]}  Rf2 {[%clk 0:00:04]} 55. Kxc5 {[%clk 0:01:42]}  Rxg2 {[%clk 0:00:05]} 56. Kb4 {[%clk 0:01:42]}  Rxh2 {[%clk 0:00:06]} 57. Kxa4 {[%clk 0:01:43]}  Re2 {[%clk 0:00:07]} 58. Kb4 {[%clk 0:01:44]}  Rxe5 {[%clk 0:00:07]} 59. Kc4 {[%clk 0:01:45]}  Re3 {[%clk 0:00:08]} 60. Kb4 {[%clk 0:01:45]}  Rxh3 {[%clk 0:00:09]} 61. Kc5 {[%clk 0:01:44]}  Rg3 {[%clk 0:00:10]} 62. Kc4 {[%clk 0:01:45]}  h3 {[%clk 0:00:11]} 63. Kd4 {[%clk 0:01:46]}  Rf3 {[%clk 0:00:12]} 64. Kc5 {[%clk 0:01:47]}  Rf4 {[%clk 0:00:13]} 65. Kb5 {[%clk 0:01:47]}  h2 {[%clk 0:00:14]} 66. Kb6 {[%clk 0:01:48]}  h1=Q {[%clk 0:00:14]} 67. Kc5 {[%clk 0:01:46]}  Qd5+ {[%clk 0:00:13]} 68. Kb6 {[%clk 0:01:46]}  Rb4+ {[%clk 0:00:12]} 69. Kc7 {[%clk 0:01:47]}  Qc5+ {[%clk 0:00:12]} 70. Kd8 {[%clk 0:01:47]}  Rb8# {[%clk 0:00:12]} 0-1


[Site "https://www.chess.com"]

[Event "Titled Tuesday Blitz April 05 Early 2022"]
[White "Samaganova, Aleksandra"]
[Black "Przybylski, Wojciech"]
[WhiteFideId "13800221"]
[BlackFideId "1117599"]
[WhiteElo "1859"]
[BlackElo "2133"]
[Result "0-1"]
[Round "11"]
[TimeControl "180+1"]
[Date "2022.04.05"]
[WhiteClock "0:00:07"]
[BlackClock "0:01:01"]

1. c4 {[%clk 0:03:00]}  e5 {[%clk 0:02:58]} 2. Nc3 {[%clk 0:02:59]}  Nf6 {[%clk 0:02:50]} 3. Nf3 {[%clk 0:02:59]}  Nc6 {[%clk 0:02:42]} 4. a3 {[%clk 0:02:59]}  d5 {[%clk 0:02:39]} 5. cxd5 {[%clk 0:02:56]}  Nxd5 {[%clk 0:02:40]} 6. Qc2 {[%clk 0:02:56]}  Be6 {[%clk 0:02:38]} 7. e3 {[%clk 0:02:55]}  a6 {[%clk 0:02:35]} 8. b4 {[%clk 0:02:54]}  Be7 {[%clk 0:02:34]} 9. Bb2 {[%clk 0:02:54]}  O-O {[%clk 0:02:34]} 10. Be2 {[%clk 0:02:50]}  f6 {[%clk 0:02:32]} 11. O-O {[%clk 0:02:48]}  Kh8 {[%clk 0:02:31]} 12. Rfd1 {[%clk 0:02:42]}  f5 {[%clk 0:02:29]} 13. d4 {[%clk 0:02:37]}  e4 {[%clk 0:02:29]} 14. Ne5 {[%clk 0:02:37]}  Bd6 {[%clk 0:02:20]} 15. Nxd5 {[%clk 0:02:21]}  Bxd5 {[%clk 0:02:18]} 16. Bc4 {[%clk 0:02:16]}  Ne7 {[%clk 0:02:17]} 17. Rac1 {[%clk 0:02:02]}  Qe8 {[%clk 0:02:14]} 18. Qe2 {[%clk 0:01:55]}  c6 {[%clk 0:02:12]} 19. g3 {[%clk 0:01:12]}  Rd8 {[%clk 0:02:06]} 20. Bc3 {[%clk 0:01:01]}  Kg8 {[%clk 0:02:05]} 21. a4 {[%clk 0:00:57]}  Ng6 {[%clk 0:01:48]} 22. Bxd5+ {[%clk 0:00:47]}  cxd5 {[%clk 0:01:49]} 23. Qb2 {[%clk 0:00:45]}  Qxa4 {[%clk 0:01:44]} 24. Bd2 {[%clk 0:00:35]}  Qb5 {[%clk 0:01:34]} 25. Rc2 {[%clk 0:00:30]}  Rfe8 {[%clk 0:01:29]} 26. Nxg6 {[%clk 0:00:28]}  hxg6 {[%clk 0:01:30]} 27. Rdc1 {[%clk 0:00:28]}  Kh7 {[%clk 0:01:22]} 28. Be1 {[%clk 0:00:22]}  Rf8 {[%clk 0:01:19]} 29. Kg2 {[%clk 0:00:21]}  g5 {[%clk 0:01:17]} 30. h3 {[%clk 0:00:20]}  f4 {[%clk 0:01:16]} 31. gxf4 {[%clk 0:00:18]}  gxf4 {[%clk 0:01:16]} 32. exf4 {[%clk 0:00:17]}  Rxf4 {[%clk 0:01:14]} 33. Rc3 {[%clk 0:00:13]}  Rdf8 {[%clk 0:01:11]} 34. Rg3 {[%clk 0:00:12]}  Rf3 {[%clk 0:01:08]} 35. Rc2 {[%clk 0:00:08]}  Bxg3 {[%clk 0:01:06]} 36. fxg3 {[%clk 0:00:09]}  Qf1+ {[%clk 0:01:04]} 37. Kh2 {[%clk 0:00:09]}  Qxe1 {[%clk 0:01:03]} 38. Rg2 {[%clk 0:00:08]}  Rf2 {[%clk 0:01:02]} 39. Rxf2 {[%clk 0:00:06]}  Rxf2+ {[%clk 0:01:01]} 40. Qxf2 {[%clk 0:00:07]}  Qxf2+ {[%clk 0:01:01]} 0-1


[Site "https://www.chess.com"]

[Event "Titled Tuesday Blitz April 05 Early 2022"]
[White "Sebag, Marie"]
[Black "Van den Dikkenberg, Erik"]
[WhiteFideId "617822"]
[BlackFideId "1005880"]
[WhiteElo "2440"]
[BlackElo "2118"]
[Result "1-0"]
[Round "11"]
[TimeControl "180+1"]
[Date "2022.04.05"]
[WhiteClock "0:00:19"]
[BlackClock "0:00:24"]

1. d4 {[%clk 0:03:00]}  Nf6 {[%clk 0:02:58]} 2. Nc3 {[%clk 0:02:57]}  g6 {[%clk 0:02:57]} 3. e4 {[%clk 0:02:53]}  d6 {[%clk 0:02:57]} 4. f4 {[%clk 0:02:50]}  Bg7 {[%clk 0:02:57]} 5. Nf3 {[%clk 0:02:51]}  O-O {[%clk 0:02:57]} 6. Bd3 {[%clk 0:02:51]}  c5 {[%clk 0:02:56]} 7. d5 {[%clk 0:02:49]}  b5 {[%clk 0:02:53]} 8. Nxb5 {[%clk 0:02:41]}  c4 {[%clk 0:02:52]} 9. Bxc4 {[%clk 0:02:37]}  Nxe4 {[%clk 0:02:51]} 10. Qe2 {[%clk 0:02:37]}  Qa5+ {[%clk 0:02:36]} 11. c3 {[%clk 0:02:19]}  a6 {[%clk 0:02:27]} 12. Qxe4 {[%clk 0:02:04]}  axb5 {[%clk 0:02:27]} 13. Bb3 {[%clk 0:01:56]}  Bf5 {[%clk 0:02:21]} 14. Qe3 {[%clk 0:01:53]}  Nd7 {[%clk 0:02:18]} 15. O-O {[%clk 0:01:47]}  Nc5 {[%clk 0:02:16]} 16. Bd1 {[%clk 0:01:40]}  Nd3 {[%clk 0:02:00]} 17. Nd4 {[%clk 0:01:36]}  Bxd4 {[%clk 0:01:34]} 18. cxd4 {[%clk 0:01:33]}  Nxc1 {[%clk 0:01:28]} 19. Qxc1 {[%clk 0:01:33]}  Rfc8 {[%clk 0:01:26]} 20. Qe3 {[%clk 0:01:32]}  Qb4 {[%clk 0:01:24]} 21. Bb3 {[%clk 0:01:29]}  Rc7 {[%clk 0:01:18]} 22. a3 {[%clk 0:01:14]}  Qa5 {[%clk 0:01:10]} 23. Rac1 {[%clk 0:01:10]}  Rac8 {[%clk 0:01:09]} 24. Rxc7 {[%clk 0:01:09]}  Rxc7 {[%clk 0:01:07]} 25. Rc1 {[%clk 0:01:03]}  Rxc1+ {[%clk 0:01:03]} 26. Qxc1 {[%clk 0:01:03]}  Kg7 {[%clk 0:01:02]} 27. Qc3 {[%clk 0:00:59]}  Qb6 {[%clk 0:00:58]} 28. h3 {[%clk 0:00:57]}  h5 {[%clk 0:00:58]} 29. Qb4 {[%clk 0:00:57]}  Qc7 {[%clk 0:00:50]} 30. Qc3 {[%clk 0:00:55]}  Qb6 {[%clk 0:00:50]} 31. Kf2 {[%clk 0:00:55]}  Kf6 {[%clk 0:00:44]} 32. Bd1 {[%clk 0:00:52]}  h4 {[%clk 0:00:41]} 33. Be2 {[%clk 0:00:52]}  Qb7 {[%clk 0:00:37]} 34. Qb3 {[%clk 0:00:47]}  Qb6 {[%clk 0:00:37]} 35. Ke3 {[%clk 0:00:44]}  Qc7 {[%clk 0:00:31]} 36. Qc3 {[%clk 0:00:41]}  Qb6 {[%clk 0:00:31]} 37. Kf2 {[%clk 0:00:33]}  Qb7 {[%clk 0:00:31]} 38. Qb3 {[%clk 0:00:29]}  Qb6 {[%clk 0:00:31]} 39. Qb4 {[%clk 0:00:29]}  Qb7 {[%clk 0:00:29]} 40. Bxb5 {[%clk 0:00:25]}  Qxd5 {[%clk 0:00:28]} 41. a4 {[%clk 0:00:25]}  Qe4 {[%clk 0:00:27]} 42. Qd2 {[%clk 0:00:25]}  Qb1 {[%clk 0:00:26]} 43. a5 {[%clk 0:00:22]}  Qh1 {[%clk 0:00:26]} 44. a6 {[%clk 0:00:20]}  Qh2 {[%clk 0:00:24]} 45. Qc3 {[%clk 0:00:20]}  Qg3+ {[%clk 0:00:24]} 46. Qxg3 {[%clk 0:00:19]}  hxg3+ {[%clk 0:00:24]} 47. Kxg3 {[%clk 0:00:19]} 1-0


[Site "https://www.chess.com"]

[Event "Titled Tuesday Blitz April 05 Early 2022"]
[White "Shohat, Yotam"]
[Black "Todorovic, Bojan"]
[WhiteFideId "2813955"]
[BlackFideId "917087"]
[WhiteElo "2119"]
[BlackElo "2266"]
[Result "1-0"]
[Round "11"]
[TimeControl "180+1"]
[Date "2022.04.05"]
[WhiteClock "0:00:18"]
[BlackClock "0:01:05"]

1. e4 {[%clk 0:03:00]}  c5 {[%clk 0:02:59]} 2. Nf3 {[%clk 0:03:01]}  e6 {[%clk 0:02:57]} 3. g3 {[%clk 0:03:00]}  Nc6 {[%clk 0:02:56]} 4. Bg2 {[%clk 0:02:59]}  g6 {[%clk 0:02:55]} 5. d4 {[%clk 0:02:58]}  cxd4 {[%clk 0:02:54]} 6. Nxd4 {[%clk 0:02:59]}  a6 {[%clk 0:02:53]} 7. Nc3 {[%clk 0:02:50]}  Bg7 {[%clk 0:02:52]} 8. Be3 {[%clk 0:02:50]}  Nge7 {[%clk 0:02:50]} 9. O-O {[%clk 0:02:50]}  O-O {[%clk 0:02:50]} 10. Qd2 {[%clk 0:02:47]}  b5 {[%clk 0:02:44]} 11. Rad1 {[%clk 0:02:42]}  Bb7 {[%clk 0:02:39]} 12. a3 {[%clk 0:02:10]}  Ne5 {[%clk 0:02:32]} 13. Bh6 {[%clk 0:01:46]}  Nc4 {[%clk 0:02:30]} 14. Qc1 {[%clk 0:01:43]}  Bxh6 {[%clk 0:02:24]} 15. Qxh6 {[%clk 0:01:41]}  Nxb2 {[%clk 0:02:24]} 16. Nf3 {[%clk 0:01:33]}  f6 {[%clk 0:02:19]} 17. Rd4 {[%clk 0:01:27]}  e5 {[%clk 0:02:12]} 18. Rd6 {[%clk 0:00:45]}  Nc4 {[%clk 0:02:11]} 19. Rxf6 {[%clk 0:00:44]}  Rxf6 {[%clk 0:02:05]} 20. Ng5 {[%clk 0:00:44]}  Rf7 {[%clk 0:01:47]} 21. Nxf7 {[%clk 0:00:43]}  Kxf7 {[%clk 0:01:47]} 22. Qxh7+ {[%clk 0:00:43]}  Kf6 {[%clk 0:01:36]} 23. f4 {[%clk 0:00:42]}  Qb6+ {[%clk 0:01:35]} 24. Kh1 {[%clk 0:00:40]}  Ne3 {[%clk 0:01:12]} 25. fxe5+ {[%clk 0:00:36]}  Ke6 {[%clk 0:01:12]} 26. Rf6+ {[%clk 0:00:21]}  Kxe5 {[%clk 0:01:08]} 27. Qxe7+ {[%clk 0:00:22]}  Kd4 {[%clk 0:01:07]} 28. Ne2+ {[%clk 0:00:18]}  Kc4 {[%clk 0:01:05]} 29. Qb4# {[%clk 0:00:18]} 1-0


[Site "https://www.chess.com"]

[Event "Titled Tuesday Blitz April 05 Early 2022"]
[White "Shtyka, Sergey"]
[Black "Papp, Levente"]
[WhiteFideId "4138465"]
[BlackFideId "751243"]
[WhiteElo "2014"]
[BlackElo "2308"]
[Result "0-1"]
[Round "11"]
[TimeControl "180+1"]
[Date "2022.04.05"]
[WhiteClock "0:00:04"]
[BlackClock "0:00:09"]

1. e4 {[%clk 0:02:58]}  e6 {[%clk 0:03:00]} 2. Nf3 {[%clk 0:02:58]}  d5 {[%clk 0:03:00]} 3. e5 {[%clk 0:02:58]}  a5 {[%clk 0:03:00]} 4. c4 {[%clk 0:02:57]}  dxc4 {[%clk 0:02:52]} 5. Bxc4 {[%clk 0:02:56]}  Ne7 {[%clk 0:02:31]} 6. O-O {[%clk 0:02:55]}  Nd5 {[%clk 0:02:32]} 7. d4 {[%clk 0:02:54]}  Be7 {[%clk 0:02:31]} 8. Nc3 {[%clk 0:02:53]}  c6 {[%clk 0:02:31]} 9. Ne4 {[%clk 0:02:53]}  h6 {[%clk 0:02:31]} 10. a3 {[%clk 0:02:49]}  Nd7 {[%clk 0:02:28]} 11. Re1 {[%clk 0:02:49]}  b5 {[%clk 0:02:27]} 12. Ba2 {[%clk 0:02:46]}  Bb7 {[%clk 0:02:25]} 13. Bd2 {[%clk 0:02:38]}  c5 {[%clk 0:02:21]} 14. dxc5 {[%clk 0:02:35]}  Nxc5 {[%clk 0:02:22]} 15. Qe2 {[%clk 0:02:22]}  O-O {[%clk 0:01:50]} 16. Nxc5 {[%clk 0:02:17]}  Bxc5 {[%clk 0:01:50]} 17. Qxb5 {[%clk 0:02:16]}  Qe7 {[%clk 0:01:46]} 18. Bxa5 {[%clk 0:01:43]}  Nf4 {[%clk 0:01:35]} 19. b4 {[%clk 0:01:20]}  Bxf3 {[%clk 0:01:29]} 20. Qxc5 {[%clk 0:01:14]}  Qg5 {[%clk 0:01:26]} 21. g3 {[%clk 0:01:13]}  Qh5 {[%clk 0:00:34]} 22. Qe3 {[%clk 0:00:56]}  Nh3+ {[%clk 0:00:34]} 23. Kf1 {[%clk 0:00:56]}  Ng5 {[%clk 0:00:34]} 24. h4 {[%clk 0:00:53]}  Qg4 {[%clk 0:00:34]} 25. Rec1 {[%clk 0:00:33]}  Qh3+ {[%clk 0:00:33]} 26. Ke1 {[%clk 0:00:33]}  Rad8 {[%clk 0:00:24]} 27. Bxd8 {[%clk 0:00:32]}  Rxd8 {[%clk 0:00:25]} 28. Bc4 {[%clk 0:00:14]}  Qh1+ {[%clk 0:00:15]} 29. Bf1 {[%clk 0:00:14]}  Bg2 {[%clk 0:00:14]} 30. Ke2 {[%clk 0:00:13]}  Bf3+ {[%clk 0:00:14]} 31. Ke1 {[%clk 0:00:13]}  Ne4 {[%clk 0:00:12]} 32. Rd1 {[%clk 0:00:09]}  Bxd1 {[%clk 0:00:12]} 33. Rxd1 {[%clk 0:00:09]}  Rxd1+ {[%clk 0:00:12]} 34. Kxd1 {[%clk 0:00:09]}  Qxf1+ {[%clk 0:00:13]} 35. Kc2 {[%clk 0:00:07]}  Qc4+ {[%clk 0:00:12]} 36. Kb2 {[%clk 0:00:07]}  Qd5 {[%clk 0:00:10]} 37. g4 {[%clk 0:00:04]}  Qxe5+ {[%clk 0:00:11]} 38. Kb3 {[%clk 0:00:04]}  Qd5+ {[%clk 0:00:10]} 39. Kb2 {[%clk 0:00:05]}  Nd6 {[%clk 0:00:11]} 40. Qc3 {[%clk 0:00:04]}  Nc4+ {[%clk 0:00:10]} 41. Kc1 {[%clk 0:00:04]}  e5 {[%clk 0:00:08]} 42. g5 {[%clk 0:00:04]}  hxg5 {[%clk 0:00:08]} 43. hxg5 {[%clk 0:00:05]}  e4 {[%clk 0:00:09]} 44. Kb1 {[%clk 0:00:04]}  Qd1+ {[%clk 0:00:08]} 45. Ka2 {[%clk 0:00:04]}  Qd5 {[%clk 0:00:07]} 46. Kb1 {[%clk 0:00:04]}  Nd6 {[%clk 0:00:07]} 47. a4 {[%clk 0:00:04]}  Qxg5 {[%clk 0:00:06]} 48. b5 {[%clk 0:00:04]}  Qg1+ {[%clk 0:00:06]} 49. Ka2 {[%clk 0:00:03]}  Qxf2+ {[%clk 0:00:07]} 50. Kb3 {[%clk 0:00:03]}  Qb6 {[%clk 0:00:07]} 51. Kb4 {[%clk 0:00:03]}  Nb7 {[%clk 0:00:06]} 52. Qc8+ {[%clk 0:00:01]}  Kh7 {[%clk 0:00:06]} 53. Qf5+ {[%clk 0:00:02]}  Kh6 {[%clk 0:00:06]} 54. Qh3+ {[%clk 0:00:02]}  Kg5 {[%clk 0:00:07]} 55. Qg3+ {[%clk 0:00:02]}  Kf5 {[%clk 0:00:07]} 56. Qh3+ {[%clk 0:00:01]}  Kf4 {[%clk 0:00:08]} 57. Qh2+ {[%clk 0:00:01]}  Kf3 {[%clk 0:00:08]} 58. Qh1+ {[%clk 0:00:02]}  Kf4 {[%clk 0:00:07]} 59. Qh2+ {[%clk 0:00:02]}  Kf5 {[%clk 0:00:07]} 60. Qh3+ {[%clk 0:00:02]}  Ke5 {[%clk 0:00:07]} 61. Qg3+ {[%clk 0:00:02]}  Ke6 {[%clk 0:00:07]} 62. Qg4+ {[%clk 0:00:02]}  Ke7 {[%clk 0:00:06]} 63. Qxe4+ {[%clk 0:00:02]}  Kd7 {[%clk 0:00:05]} 64. Qf5+ {[%clk 0:00:02]}  Qe6 {[%clk 0:00:05]} 65. Qxe6+ {[%clk 0:00:02]}  fxe6 {[%clk 0:00:05]} 66. a5 {[%clk 0:00:02]}  Kc7 {[%clk 0:00:05]} 67. b6+ {[%clk 0:00:01]}  Kc6 {[%clk 0:00:05]} 68. Kc4 {[%clk 0:00:02]}  Nxa5+ {[%clk 0:00:05]} 69. Kd4 {[%clk 0:00:03]}  Kxb6 {[%clk 0:00:06]} 70. Ke5 {[%clk 0:00:03]}  Nc6+ {[%clk 0:00:06]} 71. Kxe6 {[%clk 0:00:03]}  g6 {[%clk 0:00:06]} 72. Kf6 {[%clk 0:00:04]}  Ne7 {[%clk 0:00:06]} 73. Kg5 {[%clk 0:00:03]}  Kc5 {[%clk 0:00:07]} 74. Kf6 {[%clk 0:00:04]}  Kd5 {[%clk 0:00:07]} 75. Kg5 {[%clk 0:00:04]}  Ke5 {[%clk 0:00:08]} 76. Kh4 {[%clk 0:00:04]}  Kf5 {[%clk 0:00:09]} 0-1


[Site "https://www.chess.com"]

[Event "Titled Tuesday Blitz April 05 Early 2022"]
[White "Shukhman, Anna"]
[Black "Tsyhanchuk, Stanislav"]
[WhiteFideId "54180058"]
[BlackFideId "13505130"]
[WhiteElo "1665"]
[BlackElo "2078"]
[Result "1-0"]
[Round "11"]
[TimeControl "180+1"]
[Date "2022.04.05"]
[WhiteClock "0:00:34"]
[BlackClock "0:00:02"]

1. e4 {[%clk 0:03:00]}  c5 {[%clk 0:02:54]} 2. Nf3 {[%clk 0:02:59]}  d6 {[%clk 0:02:54]} 3. d4 {[%clk 0:02:57]}  cxd4 {[%clk 0:02:55]} 4. Nxd4 {[%clk 0:02:58]}  Nf6 {[%clk 0:02:55]} 5. Nc3 {[%clk 0:02:57]}  a6 {[%clk 0:02:55]} 6. Qd3 {[%clk 0:02:56]}  e5 {[%clk 0:02:53]} 7. Nf5 {[%clk 0:02:55]}  Bxf5 {[%clk 0:02:52]} 8. exf5 {[%clk 0:02:54]}  d5 {[%clk 0:02:52]} 9. Bg5 {[%clk 0:02:53]}  d4 {[%clk 0:02:52]} 10. Ne4 {[%clk 0:02:50]}  Be7 {[%clk 0:02:51]} 11. Bxf6 {[%clk 0:02:48]}  Bxf6 {[%clk 0:02:52]} 12. O-O-O {[%clk 0:02:47]}  Nc6 {[%clk 0:02:51]} 13. g4 {[%clk 0:02:38]}  Bg5+ {[%clk 0:02:42]} 14. Kb1 {[%clk 0:02:37]}  Bf4 {[%clk 0:02:38]} 15. h4 {[%clk 0:02:35]}  b5 {[%clk 0:02:18]} 16. g5 {[%clk 0:02:31]}  Qd5 {[%clk 0:02:08]} 17. Bg2 {[%clk 0:02:25]}  O-O-O {[%clk 0:01:37]} 18. Bf3 {[%clk 0:02:16]}  Kb8 {[%clk 0:01:15]} 19. Qa3 {[%clk 0:02:14]}  a5 {[%clk 0:00:54]} 20. Rhe1 {[%clk 0:01:39]}  Ka7 {[%clk 0:00:36]} 21. Nc5 {[%clk 0:01:33]}  Qd6 {[%clk 0:00:34]} 22. Bxc6 {[%clk 0:01:32]}  Kb6 {[%clk 0:00:20]} 23. Nb7 {[%clk 0:01:25]}  Qxc6 {[%clk 0:00:16]} 24. Nxd8 {[%clk 0:01:25]}  Rxd8 {[%clk 0:00:17]} 25. Qd3 {[%clk 0:01:16]}  Rc8 {[%clk 0:00:17]} 26. Qe4 {[%clk 0:01:15]}  Qc5 {[%clk 0:00:16]} 27. f6 {[%clk 0:01:09]}  g6 {[%clk 0:00:16]} 28. Re2 {[%clk 0:00:54]}  a4 {[%clk 0:00:15]} 29. a3 {[%clk 0:00:53]}  Ka7 {[%clk 0:00:13]} 30. Rd3 {[%clk 0:00:51]}  Rb8 {[%clk 0:00:09]} 31. Rf3 {[%clk 0:00:50]}  b4 {[%clk 0:00:08]} 32. Rxf4 {[%clk 0:00:50]}  bxa3 {[%clk 0:00:04]} 33. Qxe5 {[%clk 0:00:36]}  Rxb2+ {[%clk 0:00:04]} 34. Ka1 {[%clk 0:00:36]}  Qc3 {[%clk 0:00:03]} 35. Qxd4+ {[%clk 0:00:33]}  Qxd4 {[%clk 0:00:02]} 36. Rxd4 {[%clk 0:00:34]} 1-0


[Site "https://www.chess.com"]

[Event "Titled Tuesday Blitz April 05 Early 2022"]
[White "Silvestre, Christian"]
[Black "Bongo Akanga Ndjila, Barthelemy"]
[WhiteFideId "30956269"]
[BlackFideId "10609431"]
[WhiteElo "2402"]
[BlackElo "1768"]
[Result "1/2-1/2"]
[Round "11"]
[TimeControl "180+1"]
[Date "2022.04.05"]
[WhiteClock "0:00:13"]
[BlackClock "0:00:22"]

1. e4 {[%clk 0:03:00]}  c6 {[%clk 0:02:11]} 2. Nc3 {[%clk 0:02:27]}  d5 {[%clk 0:02:12]} 3. d4 {[%clk 0:02:26]}  dxe4 {[%clk 0:02:12]} 4. Nxe4 {[%clk 0:02:27]}  Nf6 {[%clk 0:02:12]} 5. Nc3 {[%clk 0:02:24]}  Bf5 {[%clk 0:02:02]} 6. Bc4 {[%clk 0:02:23]}  e6 {[%clk 0:02:01]} 7. Nf3 {[%clk 0:02:21]}  Bg4 {[%clk 0:01:58]} 8. h3 {[%clk 0:02:20]}  Bh5 {[%clk 0:01:57]} 9. g4 {[%clk 0:02:19]}  Bg6 {[%clk 0:01:57]} 10. Ne5 {[%clk 0:02:17]}  Nbd7 {[%clk 0:01:57]} 11. Qe2 {[%clk 0:02:16]}  Nxe5 {[%clk 0:01:56]} 12. dxe5 {[%clk 0:02:17]}  Nd5 {[%clk 0:01:56]} 13. Bd2 {[%clk 0:02:12]}  Qb6 {[%clk 0:01:50]} 14. O-O-O {[%clk 0:02:07]}  O-O-O {[%clk 0:01:46]} 15. a3 {[%clk 0:01:54]}  Nxc3 {[%clk 0:01:45]} 16. Bxc3 {[%clk 0:01:52]}  Bc5 {[%clk 0:01:43]} 17. f3 {[%clk 0:01:34]}  Be3+ {[%clk 0:01:42]} 18. Kb1 {[%clk 0:01:34]}  Bd4 {[%clk 0:01:42]} 19. Bxd4 {[%clk 0:01:28]}  Rxd4 {[%clk 0:01:40]} 20. Rxd4 {[%clk 0:01:25]}  Qxd4 {[%clk 0:01:40]} 21. Rd1 {[%clk 0:01:25]}  Qc5 {[%clk 0:01:39]} 22. Bb3 {[%clk 0:01:19]}  Qb6 {[%clk 0:01:37]} 23. Ka2 {[%clk 0:01:15]}  Rd8 {[%clk 0:01:35]} 24. Rd2 {[%clk 0:01:12]}  Rxd2 {[%clk 0:01:33]} 25. Qxd2 {[%clk 0:01:12]}  Qd8 {[%clk 0:01:28]} 26. Qf4 {[%clk 0:01:08]}  Qe7 {[%clk 0:01:10]} 27. Qd4 {[%clk 0:00:58]}  c5 {[%clk 0:01:05]} 28. Qf2 {[%clk 0:00:56]}  Qc7 {[%clk 0:01:02]} 29. Bc4 {[%clk 0:00:48]}  Qxe5 {[%clk 0:01:00]} 30. f4 {[%clk 0:00:46]}  Qd4 {[%clk 0:00:59]} 31. Qe2 {[%clk 0:00:33]}  Qxf4 {[%clk 0:00:53]} 32. Bb3 {[%clk 0:00:30]}  Qd4 {[%clk 0:00:50]} 33. Qb5 {[%clk 0:00:27]}  Qd7 {[%clk 0:00:43]} 34. Qxc5+ {[%clk 0:00:26]}  Qc6 {[%clk 0:00:41]} 35. Qf8+ {[%clk 0:00:20]}  Kc7 {[%clk 0:00:41]} 36. Qxg7 {[%clk 0:00:20]}  b5 {[%clk 0:00:37]} 37. Qe5+ {[%clk 0:00:20]}  Kb7 {[%clk 0:00:37]} 38. Qe2 {[%clk 0:00:18]}  a5 {[%clk 0:00:36]} 39. c3 {[%clk 0:00:16]}  a4 {[%clk 0:00:31]} 40. Bc2 {[%clk 0:00:16]}  Qd5+ {[%clk 0:00:32]} 41. Kb1 {[%clk 0:00:14]}  Bxc2+ {[%clk 0:00:27]} 42. Qxc2 {[%clk 0:00:15]}  Qh1+ {[%clk 0:00:26]} 43. Ka2 {[%clk 0:00:15]}  Qxh3 {[%clk 0:00:25]} 44. Qe4+ {[%clk 0:00:16]}  Kb6 {[%clk 0:00:24]} 45. Qd4+ {[%clk 0:00:16]}  Kc6 {[%clk 0:00:23]} 46. Qe4+ {[%clk 0:00:15]}  Kd6 {[%clk 0:00:23]} 47. Qf4+ {[%clk 0:00:15]}  Ke7 {[%clk 0:00:23]} 48. Qg5+ {[%clk 0:00:14]}  Kf8 {[%clk 0:00:22]} 49. Qd8+ {[%clk 0:00:14]}  Kg7 {[%clk 0:00:22]} 50. Qg5+ {[%clk 0:00:14]}  Kf8 {[%clk 0:00:23]} 51. Qc5+ {[%clk 0:00:13]}  Kg7 {[%clk 0:00:22]} 52. Qg5+ {[%clk 0:00:13]}  Kf8 {[%clk 0:00:22]} 1/2-1/2


[Site "https://www.chess.com"]